Cogmind - Beta 14 @@@ ROGUE MODE // 2024.09.23 @ 00:25:53 // Winter2022/Polymind Player: Necroptosis Result: Destroyed by G-47 Trooper with Particle Gun Performance ------------- Evolutions (2) 1000 Regions Visited (3) 600 Robots Destroyed (1) 5 Value Destroyed (2) 2 Prototype IDs (0) 0 Alien Tech Used (0) 0 Bonus (1886) 1886 TOTAL SCORE: 3143 Bonus ------- Polymind Skill 1416 Pacifist 470 Cogmind --------- Core Integrity 0/550 Matter 0/0 Energy 98/100 System Corruption 0% Temperature Cool (9) Movement Core (50) Location -8/Materials Parts ------- > --- POWER (1) -------- (None) > --- PROPULSION (2) --- (None) > --- UTILITY (3) ------ (None) > --- WEAPON (2) ------- (None) > --- INVENTORY (0) ---- (None) Peak State ------------ > --- POWER ------------ Improved Ion Engine > --- PROPULSION ------- Light Treads Light Treads > --- UTILITY ---------- Heat Sink Heat Sink Light Armor Plating > --- WEAPON ----------- Beam Rifle Heavy Assault Rifle > --- INVENTORY -------- (None) [Rating: 11] Favorites ----------- Power Light Ion Engine Engine Light Ion Engine Propulsion Wheel Treads Light Treads Wheel Wheel Hover Unit Hover Unit Utility Medium Storage Unit Device Weight Redist. System Storage Medium Storage Unit Processor Transport Network Coupler Hackware Hacking Suite Protection Light Armor Plating Weapon Beam Rifle Energy Gun Beam Rifle Ballistic Gun Heavy Assault Rifle Special Weapon Mining Laser Special Melee Weapon Datajack Build | -11 -10 -9 -8 ------- Run | Yrd Mat Mat Mat Slots Evolved . | . . . . Power . | . . . . Propulsion . | . . . . Utility . | . . . . Weapon . | . . . . Parts Attached . | . . . . Power . | . . . . Engine . | . . . . Core . | . . . . Reactor . | . . . . Propulsion . | . . . . Treads . | . . . . Leg . | . . . . Wheel . | . . . . Hover . | . . . . Flight . | . . . . Utility . | . . . . Device . | . . . . Storage . | . . . . Processor . | . . . . Hackware . | . . . . Protection . | . . . . Artifact . | . . . . Weapon . | . . . . Energy Gun . | . . . . Energy Cannon . | . . . . Ballistic Gun . | . . . . Ballistic Cannon . | . . . . Launcher . | . . . . Special Weapon . | . . . . Impact Weapon . | . . . . Slashing Weapon . | . . . . Piercing Weapon . | . . . . Special Melee Weapon . | . . . . Unidentified Prototypes . | . . . . Parts Lost 1 | . 1 . . Power . | . . . . Propulsion . | . . . . Utility 1 | . 1 . . Weapon . | . . . . Highest Loss Streak 1 | . 1 . . To Critical Strikes . | . . . . Average Slot Usage (%) 58 | . 56 73 48 Engine 11 | . 13 11 9 Treads 7 | . . 19 4 Wheel 13 | . 20 4 15 Hover 1 | . 6 . . Device 6 | . . 14 4 Storage 8 | . 10 9 7 Processor 2 | . . 9 . Peak Build Rating 11 | . 7 8 11 Average Rating 3 | . 3 5 3 On Entrance 2 | . . 3 7 Naked Turns 173 | . 36 38 99 Heaviest Build 18 | . 4 15 18 Greatest Support 46 | 3 20 46 46 Greatest Overweight (x) . | . . . . Average Overweight (x) . | . . . . Largest Inventory Capacity 6 | . 1 6 6 Average Capacity 1 | . . 3 . Most Carried 6 | . 1 6 5 Average Carried 1 | . . 3 . Final Capacity 6 | . 1 6 . Final Carried 6 | . 1 6 . Class Distribution -------------------- 34% | Cogmind 31% | Worker 19% | Hauler 6% | Sentry 4% | Tunneler 4% | Operator Dominant Class ---------------- Worker | -10/Materials Hauler | -9/Materials Cogmind | -8/Materials Resources | -11 -10 -9 -8 ----------- Run | Yrd Mat Mat Mat Matter Collected . | . . . . Remotely . | . . . . Salvage Created 50 | . . . 50 Parts 3 | . . . 3 Haulers Intercepted 1 | . . . 1 Recyclers Shooed . | . . . . Parts Field Recycled . | . . . . Retrieved Matter . | . . . . Parts Self-Destructed . | . . . . Prevented . | . . . . Kills | -11 -10 -9 -8 ------- Run | Yrd Mat Mat Mat Combat Hostiles Destroyed . | . . . . Classes Destroyed 1 | . . . 1 Hauler 1 | . . . 1 Best Kill Streak 1 | . . . 1 Combat Bots Only . | . . . . Max Kills in Single Turn 1 | . . . 1 Gunslinging . | . . . . Exploded . | . . . . Melee . | . . . . Uniques/NPCs Destroyed . | . . . . Combat | -11 -10 -9 -8 -------- Run | Yrd Mat Mat Mat Hostile Shots Fired 108 | . 9 32 67 Missed 28 | . 3 7 18 Damage Taken 1377 | . 65 368 944 Core 684 | . 23 100 561 Absorbed by Shields . | . . . . Core Remaining (%) 88 | 100 90 75 . Volleys Fired 2 | . . . 2 Largest 2 | . . . 2 Hottest 79 | . . . 79 Shots Fired 4 | . . . 4 Gun 4 | . . . 4 Cannon . | . . . . Launcher . | . . . . Special . | . . . . Kinetic 2 | . . . 2 Thermal 2 | . . . 2 Explosive . | . . . . Electromagnetic . | . . . . Robot Hit Streak 1 | . . . 1 Robot Miss Streak 1 | . . . 1 Penetration Max . | . . . . Secondary Targets . | . . . . Shots Hit Robots 4 | . 2 . 2 Core Hits 3 | . . . 3 Critical Kills . | . . . . Critical Parts Destroyed . | . . . . Critical Strikes . | . . . . Melee Attacks 2 | . 2 . . Impact . | . . . . Slashing . | . . . . Piercing . | . . . . Sneak Attacks 2 | . 2 . . Combat Hostiles . | . . . . Follow-up Attacks . | . . . . Damage Inflicted 88 | . . . 88 Guns 41 | . . . 41 Cannons . | . . . . Explosions . | . . . . Melee . | . . . . Ramming 47 | . . . 47 Kinetic 26 | . . . 26 Thermal 15 | . . . 15 Explosive . | . . . . Electromagnetic . | . . . . Impact . | . . . . Slashing . | . . . . Piercing . | . . . . Highest Corruption . | . . . . Average Corruption . | . . . . Corruption Purged . | . . . . Corruption Blocked . | . . . . Overload Shots . | . . . . Overflow Damage . | . . . . Projectiles . | . . . . Explosions . | . . . . Melee . | . . . . Knockbacks . | . . . . Impact . | . . . . Kinetic . | . . . . Secondary . | . . . . Self-Inflicted Damage 22 | . . . 22 Shots . | . . . . Rammed 7 | . . . 7 Targets Rammed 7 | . . . 7 Kicked . | . . . . Crushed . | . . . . Highest Temperature 66 | . 3 29 66 Average Temperature 15 | . 1 12 25 Received Heat Transfer 576 | . 36 135 405 Siege Activations . | . . . . Robots Corrupted . | . . . . Combat Hostiles . | . . . . Parts Fried . | . . . . Impact Corruptions . | . . . . Robots Melted . | . . . . Combat Hostiles . | . . . . Parts Melted . | . . . . Heat Transferred 37 | . . . 37 Parts Sabotaged . | . . . . Parts Stolen . | . . . . Parts Stripped . | . . . . Power Chain Reactions . | . . . . Alert | -11 -10 -9 -8 ------- Run | Yrd Mat Mat Mat Peak Influence 382 | . 57 111 382 Initial 46 | . . 19 46 Average 76 | . 28 41 127 Maximum Alert Level 1 | . . . 1 Low Security (%) 91 | 100 100 100 82 Level 1 8 | . . . 17 Level 2 . | . . . . Level 3 . | . . . . Level 4 . | . . . . Level 5 . | . . . . High Security . | . . . . Max Security . | . . . . Squads Dispatched 5 | . 1 1 3 Investigation 2 | . . 1 1 Extermination . | . . . . Reinforcement 3 | . 1 . 2 Assault . | . . . . Garrison . | . . . . Intercept . | . . . . Searches Triggered . | . . . . Construction Impeded . | . . . . Haulers Reinforced . | . . . . Active Scanning Responses . | . . . . Cargo Convoy Interrupts . | . . . . Stealth | -11 -10 -9 -8 --------- Run | Yrd Mat Mat Mat Distress Signals 2 | . . . 2 Communications Jammed . | . . . . Distress Signals . | . . . . Times Spotted 41 | . 6 4 31 Peak Tracking Total 13 | . 5 7 13 Tactical Retreats 3 | . . . 3 Traps | -11 -10 -9 -8 ------- Run | Yrd Mat Mat Mat Traps Triggered 2 | . . 1 1 Indirectly . | . . . . Trap Hack Attempts . | . . . . Triggered . | . . . . Disarmed . | . . . . Reprogrammed . | . . . . Reused . | . . . . Traps Extracted . | . . . . Installed . | . . . . Triggered . | . . . . Machines | -11 -10 -9 -8 ---------- Run | Yrd Mat Mat Mat Machines Disabled . | . . . . Max in Single Turn . | . . . . Machines Repaired . | . . . . Machines Dismantled . | . . . . Machines Sabotaged . | . . . . Overloaded Fab Kills . | . . . . Hacking | -11 -10 -9 -8 --------- Run | Yrd Mat Mat Mat Machines Accessed 2 | . 1 1 . Terminals 2 | . 1 1 . Fabricators . | . . . . Repair Stations . | . . . . Recycling Units . | . . . . Scanalyzers . | . . . . Garrison Access . | . . . . Total Hacks 4 | . 2 2 . Successful 2 | . 1 1 . Failed 2 | . 1 1 . Catastrophic . | . . . . Database Lockouts . | . . . . Manual . | . . . . Terminals 4 | . 2 2 . Fabricators . | . . . . Repair Stations . | . . . . Recycling Units . | . . . . Scanalyzers . | . . . . Garrison Access . | . . . . Terminal Hacks 2 | . 1 1 . Terminal Index 1 | . 1 . . Locate Traps 1 | . . 1 . Fabricator Hacks . | . . . . Repair Station Hacks . | . . . . Recycling Unit Hacks . | . . . . Scanalyzer . | . . . . Garrison Access Hacks . | . . . . Unauthorized Hacks . | . . . . Terminals . | . . . . Fabricators . | . . . . Repair Stations . | . . . . Recycling Units . | . . . . Scanalyzers . | . . . . Garrison Access . | . . . . Data Cores Recovered . | . . . . Used . | . . . . Hacking Detections 2 | . 1 1 . Full Trace Events . | . . . . Feedback Events . | . . . . Feedback Blocked . | . . . . Robot Schematics Acquired . | . . . . Robots Built . | . . . . Authchips . | . . . . Time . | . . . . Total Robot Build Rating . | . . . . Part Schematics Acquired . | . . . . Parts Built . | . . . . Authchips . | . . . . Time . | . . . . Total Part Build Rating . | . . . . Parts Repaired . | . . . . Time . | . . . . Parts Recycled . | . . . . Recycled Matter . | . . . . Retrieved Matter . | . . . . Retrieved Components . | . . . . Parts Scanalyzed . | . . . . Part Schematics Acquired . | . . . . Parts Damaged . | . . . . Bothacking | -11 -10 -9 -8 ------------ Run | Yrd Mat Mat Mat Used RIF Installer . | . . . . Robots Hacked 5 | . 3 1 1 Non-combat 4 | . 3 1 . Combat 1 | . . . 1 Robot Hacks Applied 6 | . 3 1 2 no_distress 1 | . 1 . . locate_stockpiles 1 | . . 1 . find_recycling 1 | . 1 . . find_terminals 1 | . 1 . . find_shortcuts 1 | . . . 1 find_garrison 1 | . . . 1 Relay Couplers Released . | . . . . Fabnet Peak Effective % . | . . . . Robots Rewired . | . . . . Allies Hacked . | . . . . Hacks Repelled . | . . . . Allies | -11 -10 -9 -8 -------- Run | Yrd Mat Mat Mat Total Allies . | . . . . Largest Group . | . . . . Highest-Rated Group . | . . . . Highest-Rated Ally . | . . . . Total Orders . | . . . . Ally Attacks . | . . . . Total Damage . | . . . . Kills . | . . . . Allies Corrupted . | . . . . Allies Melted . | . . . . Intel | -11 -10 -9 -8 ------- Run | Yrd Mat Mat Mat Robot Analysis Total 5 | . 2 2 1 Derelict Logs Recovered . | . . . . Drone Launches . | . . . . Drone Recoveries . | . . . . Exploration | -11 -10 -9 -8 ------------- Run | Yrd Mat Mat Mat Turns Passed 514 | 14 117 148 235 Spaces Moved 677 | 29 178 153 317 Core 348 | 29 70 69 180 Treads 76 | . . 57 19 Legs . | . . . . Wheels 221 | . 76 27 118 Hover 32 | . 32 . . Flight . | . . . . Fastest Speed 50 | 50 50 50 50 Average Speed 72 | 50 63 96 67 Slowest Speed 160 | 50 80 160 160 Overloaded Moves . | . . . . Propulsion Burnouts . | . . . . Robots Hopped . | . . . . Cave-ins Triggered . | . . . . Exploration Rate (%) 26 | 3 36 33 35 Regions Visited 3 Branch Regions . Pre-discovered Areas . | . . . . Known Exits Taken . | . . . . Unknown Exits Taken 3 | 1 1 1 . Scrap Searched . | . . . . Spaces Dug . | . . . . Terrain Destroyed . | . . . . Melee . | . . . . Projectile . | . . . . AOE . | . . . . Terrain Rammed . | . . . . Walls Destroyed . | . . . . Machines Disabled . | . . . . Actions | -11 -10 -9 -8 --------- Run | Yrd Mat Mat Mat Total 698 | 28 180 154 336 Wait 4 | . . 2 2 Move 674 | 28 177 152 317 Hop . | . . . . Pick Up 1 | . 1 . . Fast Attach . | . . . . Attach . | . . . . Detach . | . . . . Swap . | . . . . Drop 6 | . . . 6 Fire 2 | . . . 2 Melee 2 | . 2 . . Ram 6 | . . . 6 Kick . | . . . . Crush 1 | . . . 1 Escape Stasis . | . . . . Rewire 2 | . . . 2 Trap . | . . . . Miscellaneous . | . . . . Route ------- -11/Scrapyard -10/Materials -9/Materials -8/Materials History --------- Turn | Location | Event 4 | -11/Scrapyard | Discovered new exit (range 13) 15 | -11/Scrapyard | Entered Materials 125 | -10/Materials | Discovered new exit (range 10) 132 | -10/Materials | Entered another Materials area 269 | -9/Materials | Discovered new exit (range 8) 280 | -9/Materials | Entered another Materials area 448 | -8/Materials | Core integrity fell below 50% 512 | -8/Materials | Core integrity fell below 20% 515 | -8/Materials | Destroyed by G-47 Trooper with Particle Gun Last Messages --------------- 00441_ G-50 Soldier unfolds itself. 00441_ G-47 Trooper unfolds itself. 00442_ Slammed into H-61 Shepherd. 00442_ Y-45 Defender reactivates. 00443_ Slammed into H-61 Shepherd. 00443_ H-61 Shepherd calls for reinforcements. 00443_ ALERT: Hostile activity reported, dispatching reinforcements to area. 00444_ Slammed into H-61 Shepherd. 00446_ Slammed into G-47 Trooper. 00446_ Triggered Alarm Trap. 00446_ An alarm sounds. 00446_ ALERT: Alarm triggered, dispatching investigation squad. 00447_ Slug penetrates Wall. 00447_ Knocked back. 00502_ Slammed into W-25 Informer. 00502_ W-25 Informer sends out distress signal. 00513_ Slammed into B-36 Bruiser. [Achievement: Back For More] Map ----- +----------------------------------------------------+ | ????????????+ #????#" ### ?????# #??? | | ????????????# #????# % ## ! ????# #??? | | ????????????# ###### % ## ?? ????# #??? | | ????????????# % % % ###?#+#######+###? | | ??S?????????# ####"# #???# # #? | | ?? ????###+##%#??### #???# # """ """ #? | | ?? ????+ #????###+####### # """ """ #? | | ?? ""??### ####???????????? + """ """ #? | | ?? ""????# #??????##????????# # #? | | ?? ""????# #???? #????????# ###+#######? | | ?? ????# #??" "" ?????????# #????? | | ###+###### # "R"" ?????????# #????? | | + """" ?????????# #????? | | ! # #????????# #### #????? | | =% #??######???????## ##??+#????? | | ### ### / T = ?????????# #????????? | | ??# #?#+##### #?####### #????????? | | ??# #?????????""" + T +????????? | | ??# #??????????"" ######### #????????? | | ??# #???????????"??????????# ########## | | ??# #??????????????????????### ### # | | ??# #????????###+????????????# #?# # | | ??# #????????# ###########Y### ! # | | ??# #######??# # ! # | | ??# w g + # | | ??# #######??# w @ g # ! # | | ??# #????????# ##########gb # ] # | | ??# #???????????????????????# # # | | ### #???????????????????????# #?? !?? | | #???????????????????????# #???#+#??? | | #???????????????????????# #???# #??? | | #??????????????????????# #???# #??? | | [!!!!#??????????????????????# #???# #??? | | [!!!!#??????????????????????# #???# #??? | | ######??????????????????????# #???# #??? | | ????????????????????????????# #???# #??? | | ????????????????????????????# ##### #??? | | ????????????????????????????# #??? | | ????????????????????????????# #??? | | ????????????????????????????# % #??? | | ????????????????????????????# #??? | | ##??????????????????#########+# #??? | | #??????????????????# * # #??? | | #??????????????????# + #??? | | #########??????????# """ ##### #??? | | ## #??????????# """"" #???# #??? | | ## #??????????# """"" =#???# #??? | | ## #???????????? """"" #???# #??? | | ## #????????????? """ #???#+##+#??? | | ### [[[ #???????????????? #?????? ??? | +----------------------------------------------------+ Best States ------------- Heat Dissipation 36 Energy Generation 17 Energy Capacity 215 Matter Stores 97 Matter Capacity 125 Sight Range 16 Terrain Scan Range 16 Terrain Scan Density 10 Additional Mass Support 6 Armor Coverage 150 Resistance: EX 50 Resistance: I 25 Evasion (%) 53 Recoil Reduction 2 Offensive Hacking 10 Item Schematics ----------------- None Robot Schematics ------------------ None Fabricated ------------ Nothing Alien Tech Used ----------------- None Achievements -------------- Back For More Challenges ------------ None Polymind | -11 -10 -9 -8 ---------- Run | Yrd Mat Mat Mat Hosts 6 | . 2 2 2 Combat Hostiles 1 | . . . 1 Allies . | . . . . Unique Host Classes 5 | . 2 2 1 Average Host Suspicion 54 | . 86 56 33 Unsuspicious Activity 106 | . 25 4 77 Returns to Shadow . | . . . . Fuzzy Dispatches . | . . . . Protomatter Created . | . . . . Used 48 | . 10 10 28 Decayed . | . . . . Highest Spend 23 | . 5 5 23 Game ------ Seed ScanExperimentalHammer Manual? 0 Play Time 00:08:03 Cumulative 35.3 hours Start 2024.09.23 @ 00:19:56 End 2024.09.23 @ 00:25:53 Sessions 1 Manual Loads 0 Difficulty Rogue Special Mode Winter2022/Polymind Game No. 50 Rogue 50 Adventurer 0 Explorer 0 Win Type - Total 1 Types 1/0/0/0/0/0/0/0/0 Lore% 28 Gallery% 44 Achievement% 41 Wizard Run 0 Options --------- Layout 1 ASCII 0 Keyboard 0 Movement Numpad Keybinds 0 Fullscreen 1 Font 20/SmallcapsGlow Map View 54x42 Zoom Use 0% Tactical HUD 1 Map Filters NONE Filters NONE Steam 1 RUN: e762180a-0b7b-4f6e-bcc2-6f934f6f18e8